Cogmind - Beta 11.1 @@@ ROGUE MODE // 2022.10.27 @ 00:15:58 Player: Infomantis Result: Self-destructed Performance ------------- Evolutions (2) 1000 Regions Visited (5) 1000 Robots Destroyed (17) 85 Value Destroyed (409) 409 Prototype IDs (25) 500 Alien Tech Used (0) 0 Bonus (300) 300 TOTAL SCORE: 3294 Bonus ------- Aligned with FarCom 300 Cogmind --------- Core Integrity 484/550 Matter 265/300 Energy 300/300 System Corruption 0% Temperature Cool (0) Movement Treading (152) Location -8/Materials Parts ------- > --- POWER (1) -------- Enhanced Nuclear Core > --- PROPULSION (3) --- Light Treads Advanced Treads Carbon-fiber Leg > --- UTILITY (4) ------ Improved Heat Sink Large Storage Unit Advanced Targeting Computer > --- WEAPON (3) ------- Spread Laser Ion Cannon Spear > --- INVENTORY (15) --- Enhanced Nuclear Core Enhanced Nuclear Core Light Fission Core Improved Cooling System Improved Cooling System Trap Scanner Machine Analyzer Power Shielding Hacking Suite Trap Extractor (0/4) AWS/Autocannon Shock Bomb Launcher Grenade Launcher Peak State ------------ > --- POWER ------------ Ion Engine > --- PROPULSION ------- Aluminum Leg Aluminum Leg > --- UTILITY ---------- Small Storage Unit Improved Targeting Computer > --- WEAPON ----------- AWS/Autocannon > --- INVENTORY -------- Light Nuclear Core Light Fission Core Wheel Trap Extractor Grenade Launcher [Rating: 37] Favorites ----------- Power Ion Engine Engine Ion Engine Power Core Enhanced Nuclear Core Propulsion Aluminum Leg Treads Advanced Treads Leg Aluminum Leg Wheel Wheel Utility Small Storage Unit Device Seismic Detector Storage Small Storage Unit Processor Improved Targeting Computer Protection Light Armor Plating Weapon Heavy Assault Rifle Energy Gun Spread Laser Energy Cannon Ion Cannon Ballistic Gun Heavy Assault Rifle Ballistic Cannon AWS/Autocannon Launcher Grenade Launcher Impact Weapon Flail Piercing Weapon Spear Build | -11 -10 -10 -10 -9 -8 ------- Run | Scr Mat Min Exi Min Mat Slots Evolved 4 | . . . . . 4 Power . | . . . . . . Propulsion 1 | . . . . . 1 Utility 2 | . . . . . 2 Weapon 1 | . . . . . 1 Parts Attached 38 | 7 2 . . 3 26 Power 2 | 1 . . . . 1 Engine 1 | 1 . . . . . Core 1 | . . . . . 1 Reactor . | . . . . . . Propulsion 8 | 2 . . . . 6 Treads 3 | . . . . . 3 Leg 4 | 2 . . . . 2 Wheel 1 | . . . . . 1 Hover . | . . . . . . Flight . | . . . . . . Utility 13 | 2 . . . 1 10 Device 5 | 1 . . . . 4 Storage 4 | 1 . . . . 3 Processor 2 | . . . . 1 1 Hackware . | . . . . . . Protection 2 | . . . . . 2 Artifact . | . . . . . . Weapon 15 | 2 2 . . 2 9 Energy Gun 1 | . . . . . 1 Energy Cannon 1 | . . . . . 1 Ballistic Gun 9 | 2 2 . . 1 4 Ballistic Cannon 1 | . . . . . 1 Launcher 1 | . . . . 1 . Special Weapon . | . . . . . . Impact Weapon 1 | . . . . . 1 Slashing Weapon . | . . . . . . Piercing Weapon 1 | . . . . . 1 Special Melee Weapon . | . . . . . . Unidentified Prototypes 2 | . . . . . 2 Parts Lost 2 | . . . . . 2 Power 1 | . . . . . 1 Propulsion 1 | . . . . . 1 Utility . | . . . . . . Weapon . | . . . . . . Highest Loss Streak 1 | . . . . . 1 To Critical Strikes . | . . . . . . Average Slot Usage (%) 99 | . 100 100 100 100 97 Engine 10 | . 14 14 14 14 4 Core 1 | . . . . . 4 Treads 3 | . . . . . 10 Leg 23 | . 28 28 28 28 15 Device 9 | . 14 14 14 . 12 Storage 12 | . 14 14 14 14 9 Processor 6 | . . . . 13 9 Protection 1 | . . . . . 4 Ballistic Gun 23 | . 28 28 28 27 16 Impact Weapon 1 | . . . . . 3 Piercing Weapon 1 | . . . . . 4 Naked Turns . | . . . . . . Heaviest Build 44 | 14 17 17 17 17 44 Greatest Support 42 | 20 20 20 20 20 42 Greatest Overweight (x) 1 | . . . . . 1 Average Overweight (x) . | . . . . . . Largest Inventory Capacity 15 | 8 8 8 8 8 15 Average Capacity 9 | 7 8 8 8 8 12 Most Carried 15 | 7 8 8 8 8 15 Average Carried 9 | 4 7 7 7 8 11 Final Capacity 15 | 8 8 8 8 8 15 Final Carried 15 | 7 8 8 8 8 15 Class Distribution -------------------- 100% | Mutant Dominant Class ---------------- Mutant | -10/Materials Mutant | -10/Mines Mutant | -10/Exiles Mutant | -9/Mines Mutant | -8/Materials Resources | -11 -10 -10 -10 -9 -8 ----------- Run | Scr Mat Min Exi Min Mat Matter Collected 730 | 280 26 . . 43 381 Remotely . | . . . . . . Salvage Created 529 | 29 . . . 23 477 Parts 29 | 3 . . . 6 20 Haulers Intercepted 1 | . . . . . 1 Recyclers Shooed 1 | 1 . . . . . Parts Field Recycled . | . . . . . . Retrieved Matter . | . . . . . . Parts Self-Destructed . | . . . . . . Prevented . | . . . . . . Kills | -11 -10 -10 -10 -9 -8 ------- Run | Scr Mat Min Exi Min Mat Combat Hostiles Destroyed 11 | . . . . 4 7 Melee 3 | . . . . . 3 Guns 5 | . . . . 1 4 AOE 3 | . . . . 3 . Classes Destroyed 7 | 1 . . . 1 5 Worker 2 | . . . . . 2 Tunneler 2 | 1 . . . . 1 Hauler 1 | . . . . . 1 Operator 1 | . . . . . 1 Swarmer 4 | . . . . 4 . Grunt 5 | . . . . . 5 Sentry 2 | . . . . . 2 Best Kill Streak 3 | 1 . . . 3 3 Combat Bots Only 3 | . . . . 3 2 Max Kills in Single Turn 2 | 1 . . . 2 2 Gunslinging . | . . . . . . Exploded 2 | . . . . 2 . Melee 1 | . . . . . 1 Uniques/NPCs Destroyed . | . . . . . . Combat | -11 -10 -10 -10 -9 -8 -------- Run | Scr Mat Min Exi Min Mat Damage Taken 681 | . . . . 102 579 Core 88 | . . . . 22 66 Absorbed by Shields . | . . . . . . Core Remaining (%) 95 | 100 . . . 91 . Volleys Fired 30 | 4 . . . 6 20 Largest 2 | 2 . . . 2 2 Hottest 46 | 40 . . . 46 46 Shots Fired 58 | 8 . . . 10 40 Gun 56 | 8 . . . 8 40 Cannon . | . . . . . . Launcher 2 | . . . . 2 . Special . | . . . . . . Kinetic 56 | 8 . . . 8 40 Thermal . | . . . . . . Explosive 2 | . . . . 2 . Electromagnetic . | . . . . . . Robot Hit Streak 8 | 5 . . . 2 8 Robot Miss Streak 2 | 1 . . . 2 2 Penetration Max . | . . . . . . Secondary Targets . | . . . . . . Shots Hit Robots 59 | 6 . . . 4 49 Core Hits 26 | 1 . . . 5 20 Critical Kills . | . . . . . . Critical Parts Destroyed 2 | . . . . . 2 Critical Strikes 3 | . . . . . 3 Smash 3 | . . . . . 3 Melee Attacks 26 | . . . . . 26 Impact 20 | . . . . . 20 Slashing . | . . . . . . Piercing 6 | . . . . . 6 Sneak Attacks 2 | . . . . . 2 Combat Hostiles . | . . . . . . Follow-up Attacks . | . . . . . . Damage Inflicted 1468 | 73 4 9 . 267 1115 Guns 603 | 73 . . . 58 472 Cannons . | . . . . . . Explosions 200 | . . . . 200 . Melee 643 | . . . . . 643 Ramming 22 | . 4 9 . 9 . Kinetic 603 | 73 . . . 58 472 Thermal . | . . . . . . Explosive 200 | . . . . 200 . Electromagnetic . | . . . . . . Impact 487 | . . . . . 487 Slashing . | . . . . . . Piercing 156 | . . . . . 156 Highest Corruption . | . . . . . . Average Corruption . | . . . . . . Corruption Purged . | . . . . . . Corruption Blocked . | . . . . . . Overload Shots . | . . . . . . Overflow Damage 110 | . . . . . 110 Projectiles . | . . . . . . Explosions . | . . . . . . Melee 110 | . . . . . 110 Knockbacks . | . . . . . . Impact . | . . . . . . Kinetic . | . . . . . . Secondary . | . . . . . . Self-Inflicted Damage 18 | . . . . 18 . Shots 1 | . . . . 1 . Rammed . | . . . . . . Targets Rammed 4 | . 2 1 . 1 . Kicked 4 | . 2 1 . 1 . Crushed . | . . . . . . Highest Temperature 2 | . . . . . 2 Average Temperature 2 | . . . . . 2 Received Heat Transfer 333 | . . . . . 333 Siege Activations . | . . . . . . Robots Corrupted . | . . . . . . Combat Hostiles . | . . . . . . Parts Fried 2 | . . . . . 2 Impact Corruptions 4 | . . . . . 4 Robots Melted . | . . . . . . Combat Hostiles . | . . . . . . Parts Melted . | . . . . . . Heat Transferred . | . . . . . . Parts Sabotaged . | . . . . . . Parts Stolen . | . . . . . . Parts Stripped . | . . . . . . Power Chain Reactions . | . . . . . . Missiles Intercepted . | . . . . . . Alert | -11 -10 -10 -10 -9 -8 ------- Run | Scr Mat Min Exi Min Mat Peak Influence 155 | 5 3 . . 115 155 Initial 25 | . 3 . . . 25 Average 55 | 1 3 . . 55 79 Maximum Alert Level . | . . . . . . Low Security (%) 100 | 100 100 100 . 100 100 Level 1 . | . . . . . . Level 2 . | . . . . . . Level 3 . | . . . . . . Level 4 . | . . . . . . Level 5 . | . . . . . . High Security . | . . . . . . Max Security . | . . . . . . Squads Dispatched 3 | . 1 . . . 2 Investigation 1 | . . . . . 1 Extermination . | . . . . . . Reinforcement 2 | . 1 . . . 1 Assault . | . . . . . . Garrison . | . . . . . . Intercept . | . . . . . . Searches Triggered . | . . . . . . Construction Impeded . | . . . . . . Haulers Reinforced . | . . . . . . Active Scanning Responses . | . . . . . . Cargo Convoy Interrupts . | . . . . . . Stealth | -11 -10 -10 -10 -9 -8 --------- Run | Scr Mat Min Exi Min Mat Distress Signals 4 | . 2 . . . 2 Communications Jammed . | . . . . . . Distress Signals . | . . . . . . Times Spotted 32 | . 1 5 . 7 19 Peak Tracking Total 4 | . 1 2 . 3 4 Tactical Retreats 1 | . . . . 1 . Traps | -11 -10 -10 -10 -9 -8 ------- Run | Scr Mat Min Exi Min Mat Traps Triggered 1 | . . . . . 1 Indirectly . | . . . . . . Trap Hack Attempts . | . . . . . . Triggered . | . . . . . . Disarmed . | . . . . . . Reprogrammed . | . . . . . . Reused . | . . . . . . Traps Extracted . | . . . . . . Installed . | . . . . . . Triggered . | . . . . . . Machines | -11 -10 -10 -10 -9 -8 ---------- Run | Scr Mat Min Exi Min Mat Machines Disabled 1 | . . . . . 1 Max in Single Turn 1 | . . . . . 1 Machines Sabotaged . | . . . . . . Garrisons Compromised . | . . . . . . Overloaded Fab Kills . | . . . . . . Hacking | -11 -10 -10 -10 -9 -8 --------- Run | Scr Mat Min Exi Min Mat Machines Accessed 10 | . 2 1 3 . 4 Terminals 7 | . 2 1 . . 4 Fabricators . | . . . . . . Repair Stations . | . . . . . . Recycling Units . | . . . . . . Scanalyzers . | . . . . . . Garrison Access . | . . . . . . Total Hacks 42 | . 4 4 26 . 8 Successful 36 | . . 3 26 . 7 Failed 5 | . 4 1 . . . Catastrophic . | . . . . . . Database Lockouts 1 | . . . . . 1 Manual 1 | . . . 1 . . Terminals 16 | . 4 4 . . 8 Fabricators . | . . . . . . Repair Stations . | . . . . . . Recycling Units . | . . . . . . Scanalyzers . | . . . . . . Garrison Access . | . . . . . . Terminal Hacks 36 | . . 3 26 . 7 Record 31 | . . 2 25 . 4 Level Access Points 1 | . . . . . 1 Branch Access Points 1 | . . . . . 1 Emergency Access Points 1 | . . . . . 1 Zone Layout 1 | . . 1 . . . EX-Prototype ID Bank 1 | . . . 1 . . Fabricator Hacks . | . . . . . . Repair Station Hacks . | . . . . . . Recycling Unit Hacks . | . . . . . . Scanalyzer . | . . . . . . Garrison Access Hacks . | . . . . . . Unauthorized Hacks . | . . . . . . Terminals . | . . . . . . Fabricators . | . . . . . . Repair Stations . | . . . . . . Recycling Units . | . . . . . . Scanalyzers . | . . . . . . Garrison Access . | . . . . . . Data Cores Recovered . | . . . . . . Used . | . . . . . . Hacking Detections 4 | . 2 . . . 2 Full Trace Events . | . . . . . . Feedback Events . | . . . . . . Feedback Blocked . | . . . . . . Robot Schematics Acquired . | . . . . . . Robots Built . | . . . . . . Authchips . | . . . . . . Time . | . . . . . . Total Robot Build Rating . | . . . . . . Part Schematics Acquired . | . . . . . . Parts Built . | . . . . . . Authchips . | . . . . . . Time . | . . . . . . Total Part Build Rating . | . . . . . . Parts Repaired . | . . . . . . Time . | . . . . . . Parts Recycled . | . . . . . . Recycled Matter . | . . . . . . Retrieved Matter . | . . . . . . Retrieved Components . | . . . . . . Parts Scanalyzed . | . . . . . . Part Schematics Acquired . | . . . . . . Parts Damaged . | . . . . . . Bothacking | -11 -10 -10 -10 -9 -8 ------------ Run | Scr Mat Min Exi Min Mat Used RIF Installer . | . . . . . . Robots Hacked . | . . . . . . Non-combat . | . . . . . . Combat . | . . . . . . Robot Hacks Applied . | . . . . . . Relay Couplers Released . | . . . . . . Fabnet Peak Effective % . | . . . . . . Robots Rewired . | . . . . . . Allies Hacked . | . . . . . . Hacks Repelled . | . . . . . . Allies | -11 -10 -10 -10 -9 -8 -------- Run | Scr Mat Min Exi Min Mat Total Allies . | . . . . . . Largest Group . | . . . . . . Highest-Rated Group . | . . . . . . Highest-Rated Ally . | . . . . . . Total Orders . | . . . . . . Ally Attacks . | . . . . . . Total Damage . | . . . . . . Kills . | . . . . . . Allies Corrupted . | . . . . . . Allies Melted . | . . . . . . Intel | -11 -10 -10 -10 -9 -8 ------- Run | Scr Mat Min Exi Min Mat Robot Analysis Total . | . . . . . . Derelict Logs Recovered 2 | . . 1 . 1 . Drone Launches . | . . . . . . Drone Recoveries . | . . . . . . Exploration | -11 -10 -10 -10 -9 -8 ------------- Run | Scr Mat Min Exi Min Mat Turns Passed 3430 | 111 254 127 861 947 1130 Spaces Moved 2130 | 79 198 102 714 520 517 Core 34 | 34 . . . . . Treads 313 | . . . . . 313 Legs 1783 | 45 198 102 714 520 204 Wheels . | . . . . . . Hover . | . . . . . . Flight . | . . . . . . Fastest Speed 50 | 50 120 120 120 120 120 Average Speed 126 | 89 120 120 120 120 149 Slowest Speed 232 | 120 120 120 120 120 232 Overloaded Moves . | . . . . . . Propulsion Burnouts . | . . . . . . Robots Hopped . | . . . . . . Cave-ins Triggered . | . . . . . . Exploration Rate (%) 49 | 4 37 38 94 89 37 Regions Visited 5 Branch Regions 3 Pre-discovered Areas 2 | . . . 1 1 . Known Exits Taken 1 | . . . 1 . . Unknown Exits Taken 4 | 1 1 1 . 1 . Scrap Searched 1 | . . . . 1 . Spaces Dug 1 | . . . . . 1 Terrain Destroyed 16 | . . . . 15 1 Melee 1 | . . . . . 1 Projectile . | . . . . . . AOE 15 | . . . . 15 . Terrain Rammed . | . . . . . . Walls Destroyed . | . . . . . . Machines Disabled . | . . . . . . Actions | -11 -10 -10 -10 -9 -8 --------- Run | Scr Mat Min Exi Min Mat Total 2783 | 111 217 107 720 832 796 Wait 487 | 10 5 1 1 302 168 Move 2125 | 78 197 101 713 519 517 Hop . | . . . . . . Pick Up 34 | 12 5 2 2 . 13 Fast Attach 18 | 2 . . . 1 15 Attach 10 | 5 . . . . 5 Detach 5 | . . . . . 5 Swap 11 | . 2 . . 2 7 Drop 33 | . 6 2 4 1 20 Fire 30 | 4 . . . 6 20 Melee 26 | . . . . . 26 Ram . | . . . . . . Kick 4 | . 2 1 . 1 . Crush . | . . . . . . Escape Stasis . | . . . . . . Rewire . | . . . . . . Trap . | . . . . . . Miscellaneous . | . . . . . . Route ------- -11/Scrapyard -10/Materials (discovered 2 exits: *Min x2) -10/Mines (discovered 2 exits: [*Mat] / *Exi) -10/Exiles (discovered 2 exits: *Min x2) -9/Mines -8/Materials (discovered 4 exits: Fac x3 / Sto) History --------- Turn | Location | Event 3 | -11/Scrapyard | Discovered new exit (range 16) 112 | -11/Scrapyard | Entered Materials 112 | -10/Materials | Discovered new exit (range 8) 204 | -10/Materials | Discovered new exit (range 13) 227 | -10/Materials | Met 8R-AWN 309 | -10/Materials | Build established: Mutant 366 | -10/Materials | Entered Mines 368 | -10/Mines | Followed 8R-AWN into the Mines 448 | -10/Mines | Excavation squad dispatched 448 | -10/Mines | A large section of the Mines collapsed 474 | -10/Mines | Discovered new exit (range 6) 487 | -10/Mines | Discovered new exit (range 5) 493 | -10/Mines | Entered Exiles 494 | -10/Exiles | Identified exit to Mines 543 | -10/Exiles | Welcomed by 8R-AWN 562 | -10/Exiles | Met EX-HEX 650 | -10/Exiles | Met EX-DEC 676 | -10/Exiles | Visited The Gauntlet 843 | -10/Exiles | Learned location of Zion (-6) 977 | -10/Exiles | Met EX-BIN 1083 | -10/Exiles | Aligned with FarCom system 1084 | -10/Exiles | Given EX-Vault access code 1112 | -10/Exiles | Opened EX-Vault 1140 | -10/Exiles | Warned to stay clear of 0b10 Research branches 1243 | -10/Exiles | Found AWS/Autocannon 1354 | -10/Exiles | Left Exiles lab with AWS/Autocannon 1354 | -10/Exiles | Entered Mines 1371 | -9/Mines | Learned location of Recycling (-8) 1452 | -9/Mines | Discovered new exit (range 11) 2301 | -9/Mines | Entered Materials 2301 | -8/Materials | Evolved 4 slots: Propulsion x1, Utility x2, Weapon x1 2490 | -8/Materials | Identified exit to Factory 3141 | -8/Materials | Identified exit to Storage 3141 | -8/Materials | Central database locked down 3431 | -8/Materials | Self-destructed Last Messages --------------- 03192_ G-47 Trooper destroyed. 03192_ K-01 Serf destroyed. 03193_ K-01 Serf collects debris. 03196_ Acquired 12 matter. 03197_ K-01 Serf collects debris. 03222_ K-01 Serf cleans the Atomic Centrifuge. 03233_ Dropped Imp. Assault Rifle. 03233_ K-01 Serf cleans the Atomic Centrifuge. 03233_ Acquired Ion Cannon. 03279_ Discarded Imp. Targeting Computer. 03360_ Acquired 15 matter. 03392_ Dropped Imp. Assault Rifle. 03393_ Acquired Spread Laser. 03394_ Dropped Lgt. Armor Plating. 03396_ Acquired Lgt. Armor Plating. 03398_ Dropped Lgt. Armor Plating. 03410_ K-01 Serf cleans the Fusion Modulator. 03412_ Dropped Lrg. Storage Unit. 03412_ Acquired Trap Scanner. 03414_ K-01 Serf cleans the Fusion Modulator. Map ----- +----------------------------------------------------+ | ?????????????????????????????????????????????????? | | ?????????????????????????????????????????????????? | | ?????????????????????????????????????????????????? | | ?????????????????????????????????????????????????? | | ?????????????????????????????????????????????????? | | ?????????????????????????????????????????????????? | | ?????????????????????????????????????????????????? | | ?????????????????????????????????????????????????? | | ?????????????????????????????????????????????????? | | ?????????????????????????????????????????????????? | | ???????????#################?????w???????????????? | | ???????????# """ """ + ??????????????????????? | | ???????????# """"""""" #????w??????????????????? | | ???????????# """"" " #???????????????????????? | | #??????????# #???????????????????????? | | ""? #?????# [ #???????????????????????? | | """ #?????# ! #???????????????????????? | | """ #?????#######/#######???????????????????????? | | ############ #?????????Y??????????????????? | | # ! # #????????????????????????????? | | # """ """ # #????????????????????????????? | | ????"" """ + #????????????????????????????? | | ?????"" """ #w #????????????????????????????? | | +###???? !# #????????????????????????????? | | ############## ######### ##########???????? | | %* t @ #???????? | | !% #???????? | | #???????? | | ###############+################### #???????? | | ##????????# #????????????# #???????? | | ######????# """ """ #????????????#[ #???????? | | # #????# """ """ #????????????#! [#???????? | | # #????# """ """ #?????########[%[#???????? | | # ###### #?????# #[[=#???????? | | # + + #?????# ! T # #???????? | | # # #### [ #?????# / +???????? | | # # ###################### # #???????? | | # + # #??# ! ## # #???????? | | # ] # # #??#""" ##[ # ########? | | ###### # ]] = #??#""" ######### # #? | | # ]] #??#""" #???????# # T #? | | + ] #??# #???????# # #? | | # #??####+####???????# + / ! #? | | ######### #?##!! #??????????# # ! #? | | #???????# #?#! #??????????#% # ! ]#? | | #???????# #?# ########+### ########? | | #?###########+####?#! # """ #? | | #?# #????#! ####### # "T" #? | | #?# """""""??????##!!#?????# # #? | | #?# """"""" #?????####?????# ###### + #? | +----------------------------------------------------+ Best States ------------- Heat Dissipation 58 Energy Generation 17 Energy Capacity 300 Matter Stores 300 Matter Capacity 300 Sight Range 16 Terrain Scan Density 10 Armor Coverage 150 Evasion (%) 55 Targeting Accuracy 8 Recoil Reduction 2 Item Schematics ----------------- None Robot Schematics ------------------ None Fabricated ------------ Nothing Alien Tech Used ----------------- None Achievements -------------- None Challenges ------------ None Game ------ Seed AnalysisReactiveExpander Manual? 0 Play Time 00:57:30 Cumulative 229.5 hours Start 2022.07.12 @ 15:12:28 End 2022.10.27 @ 00:15:58 Sessions 3 Manual Loads 0 Difficulty Rogue Special Mode None Game No. 160 Rogue 137 Adventurer 6 Explorer 17 Win Type - Total 17 Types 10/0/3/1/0/1/1/1/0 Lore% 92 Gallery% 91 Achievement% 71 Wizard Run 0 Options --------- ASCII 0 Keyboard 0 Movement Numpad Keybinds 0 Fullscreen 1 Font 12/Fuzzy Map View 83x54 Tactical HUD 1 Map Filters NONE Filters NONE Steam 1 RUN: 665e3b8d-a3bc-4496-b594-093bff564607